[Event "Baku Open 2024"]
[Site "Baku"]
[Date "2024.07.02"]
[Round "4.9"]
[White "Ahmadzada, Ahmad"]
[Black "Zverev, Lev"]
[Result "1-0"]
[ECO "C54"]
[WhiteElo "2481"]
[BlackElo "2416"]
[Annotator "TA"]
[PlyCount "63"]
[EventDate "2024.06.29"]
[EventType "swiss"]
[EventCountry "AZE"]
[SourceTitle "playchess.com"]
[Source "ChessBase"]
[SourceQuality "1"]
[TimeControl "5400+30"]

{[%evp 14,63,17,12,17,10,81,34,40,47,67,26,16,16,42,35,123,130,122,105,178,167,206,228,232,235,233,194,207,187,481,480,512,539,529,514,532,553,489,411,792,48,28,43,399,130,129,132,29962,29966,29990,29991]} 1. e4 {[%emt 0:00:15]} e5 {[%emt 0:07:27]} 2. Nf3 {[%emt 0:00:12]} Nc6 {[%emt 0:00:48]} 3. Bc4 {[%emt 0:00:08]} Bc5 {[%emt 0:00:12]} 4. c3 {[%emt 0:00:08]} Nf6 {[%emt 0:00:05]} 5. d3 {[%emt 0:00:05]} d6 {[%emt 0:00:05]} 6. Bg5 {[%emt 0:00:26][%cal Bc1g5,Bg5h4,Bh4g3][%mdl 32]} h6 {[%emt 0:07:26]} 7. Bh4 {[%emt 0:00:14]} g5 {[%emt 0:09:03]} 8. Bg3 $1 {[%emt 0:00:11]} Bb6 {[%emt 1:09:24]} 9. Nbd2 {[%emt 0:02:32]} Be6 {[%emt 0:00:00]} (9... O-O $11) 10. b4 {[%emt 0:04:32]} ({White should try} 10. Bxe6 $16 fxe6 11. Nc4) 10... a6 {[%emt 0:00:00] White is slightly better.} 11. a4 {[%emt 0:03:46]} Nh5 {[%emt 0:00:00]} 12. h3 {[%emt 0:05:08]} Nxg3 {[%emt 0:00:00]} 13. fxg3 {[%emt 0:00:21]} Bxc4 {[%emt 0:00:00]} 14. Nxc4 {[%emt 0:04:29]} d5 {[%emt 0:00:00]} (14... Ba7 $14) 15. Nxb6 $16 {[%emt 0:02:35]} (15. Ncxe5 $6 Qf6 16. Qe2 Nxe5 $11) 15... cxb6 {[%emt 0:00:00]} 16. O-O {[%emt 0:03:38][%cal Bh1f1,Bf1f5,Bf5f6][%mdl 32] Hoping for b5.} Qd6 {[%emt 0:00:00]} (16... dxe4 $16 17. dxe4 Qe7) 17. Nd2 $18 {[%emt 0:17:05]} Ne7 {[%emt 0:00:00][%cal Bc6e7,Be7d5,Bd5b4,Bb4d3][%mdl 32]} 18. exd5 $1 {[%emt 0:05:25]} Nxd5 {[%emt 0:00:00]} 19. Ne4 {[%emt 0:05:35]} Qg6 {[%emt 0:00:00]} 20. Rf5 {[%emt 0:04:29]} O-O-O {[%emt 0:00:00]} 21. Qf3 {[%emt 0:01:30][%cal Ob4b5] Strongly threatening b5!} (21. Rxe5 f5 22. Nd2 Rhe8 $14) 21... Rhf8 $2 {[%emt 0:00:00]} (21... Kb8 {was called for.} 22. Rf1 (22. Rxe5 Rhf8 $18) (22. Rxf7 h5 $18) 22... Rd7) 22. c4 {[%emt 0:04:03]} (22. Rxe5 f5 $18) 22... Nxb4 {[%emt 0:00:00] [#]} 23. Rf6 $1 {[%emt 0:00:11]} (23. Rxe5 f5 24. Nc3 Rxd3 $17) 23... g4 {[%emt 0:00:42]} 24. Qf2 {[%emt 0:02:47]} (24. Qxg4+ Qxg4 25. hxg4 Rd4 $11) 24... Nxd3 {[%emt 0:00:40]} 25. Qe3 {[%emt 0:00:05]} (25. Rxg6 Nxf2 26. Nd6+ Kc7 $19) 25... Qh7 {[%emt 0:00:40][%cal Od3c5]} 26. Nd6+ {[%emt 0:01:28]} (26. Rxh6 Qf5 27. Nd6+ (27. Rxb6 gxh3 28. gxh3 Rh8 $18) 27... Rxd6 28. Rxd6 e4 $18) (26. hxg4 Nc5 (26... Rd4 $2 27. Nd6+ Kb8 28. Nf5 $18) 27. Nxc5 (27. Qxh6 $2 Qxe4 28. Rf2 Qd4 $19) 27... bxc5 $16) 26... Kc7 {[%emt 0:00:31] [#]} (26... Rxd6 $142 27. Rxd6 Rd8 28. Rxd8+ (28. Rxh6 Qg7 $18) (28. Rxb6 gxh3 29. Rab1 Rd4 $18) (28. Qxh6 Qxh6 29. Rxh6 gxh3 $18) (28. Qxb6 Rxd6 29. Qxd6 gxh3 $18) 28... Kxd8) 27. Nxb7 $2 {[%emt 0:32:42]} Rd4 $14 {[%emt 0:00:22]} 28. Rb1 {[%emt 0:00:00] Dancing on a razor blade.} Kxb7 {[%emt 0:00:22][%mdl 8192]} (28... Qe4 $1 $14 29. Qxe4 Rxe4) 29. Qd2 $2 {[%emt 0:00:00]} (29. Rbxb6+ $18 {is the precise move to win.} Kc7 30. hxg4) 29... Kc7 $16 {[%emt 0:06:27]} (29... Rxc4 30. Rbxb6+ Kc8 31. Qa5 $18) 30. Rbxb6 {[%emt 0:00:00] Intending Qa5 and mate.} Qe4 $2 {[%emt 0:00:21][%mdl 8192]} ({And not} 30... Rxc4 31. Qa5 Rc1+ 32. Kh2) (30... Rc8 $16) 31. Qxh6 {[%emt 0:00:00]} Nb4 {[%emt 0:00:54]} 32. Qxf8 {[%emt 0:00:00] Weighted Error Value: White=0.54/Black=0.65.  Loses game:     	---       	Black=2      Missed win:     	White=2     	---        Mistake:       	White=1     	Black=5      Inaccurate:     	White=1     	Black=1      OK:         	White=8     	Black=2      Best:        	White=3     	Black=3      Strong:       	White=1     	---} 1-0

[Event "Baku Open 2024"]
[Site "Baku"]
[Date "2024.07.02"]
[Round "4.10"]
[White "Assaubayeva, Bibisara"]
[Black "Aleksandrov, Aleksej"]
[Result "1/2-1/2"]
[ECO "C50"]
[WhiteElo "2472"]
[BlackElo "2405"]
[Annotator "TA"]
[PlyCount "47"]
[EventDate "2024.06.29"]
[EventType "swiss"]
[EventCountry "AZE"]
[SourceTitle "playchess.com"]
[Source "ChessBase"]
[SourceQuality "1"]
[TimeControl "5400+30"]

{[%evp 10,47,16,18,21,14,14,10,25,24,22,19,22,20,20,20,29,22,21,21,30,32,34,24,31,16,24,11,7,0,29,29,26,16,41,46,46,45,56,56]} 1. e4 {[%emt 0:00:43]} e5 {[%emt 0:00:07]} 2. Nf3 {[%emt 0:00:06]} Nc6 {[%emt 0:00:05]} 3. Bc4 {[%emt 0:00:06]} Bc5 {[%emt 0:00:11]} 4. Nc3 {[%emt 0:00:06]} Nf6 {[%emt 0:00:17]} 5. d3 {[%emt 0:00:05]} d6 {[%emt 0:02:28]} 6. Na4 {[%emt 0:00:06]} Bb6 {[%emt 0:00:05]} 7. a3 {[%emt 0:00:07]} O-O {[%emt 0:01:03]} 8. O-O {[%emt 0:00:07]} Be6 {[%emt 0:02:03] The position is equal.} 9. Bxe6 {[%emt 0:02:44]} fxe6 {[%emt 0:03:28]} 10. b4 {[%emt 0:00:06]} Qe8 {[%emt 0:02:49]} 11. c3 {[%emt 0:00:24]} h6 {[%emt 0:01:10]} 12. h3 {[%emt 0:01:29]} Qg6 {[%emt 0:03:28]} 13. Ra2 {[%emt 0:08:44]} Rf7 {[%emt 0:01:30]} 14. Nxb6 {[%emt 0:05:59]} axb6 {[%emt 0:00:04]} 15. a4 {[%emt 0:00:23][%cal Ba3a4,Ba4a5][%mdl 32]} Raf8 {[%emt 0:07:18][%cal Of6e4]} 16. Re1 {[%emt 0:13:36]} Nd7 {[%emt 0:05:28]} ({But not} 16... Nxe4 $2 17. Nh4 Nxc3 18. Nxg6 $18) 17. Re3 {[%emt 0:09:21]} Qh5 {[%emt 0:01:57]} 18. Qe1 {[%emt 0:03:35]} Ne7 {[%emt 0:06:30]} 19. a5 {[%emt 0:06:36]} Ra8 {[%emt 0:12:19]} 20. Bd2 {[%emt 0:08:07][%cal Bc1d2,Bd2e3,Be3f4][%mdl 32]} Rff8 {[%emt 0:04:18]} 21. Qb1 {[%emt 0:01:52]} Qf7 {[%emt 0:01:27]} 22. Re1 {[%emt 0:04:11] White is slightly better.} Ng6 {[%emt 0:01:19]} 23. Be3 {[%emt 0:01:54]} Nf4 {[%emt 0:03:09]} 24. Bxf4 {[%emt 0:04:38] Weighted Error Value: White=0.03 (flawless) /Black=0.05 (flawless) .  Inaccurate:     	---       	Black=1      OK:         	White=11    	Black=7} 1/2-1/2

[Event "Baku Open 2024"]
[Site "Baku"]
[Date "2024.07.02"]
[Round "4.11"]
[White "Samadov, Read"]
[Black "Suleymanli, Suleyman"]
[Result "1-0"]
[ECO "D35"]
[WhiteElo "2503"]
[BlackElo "2262"]
[Annotator "RC"]
[PlyCount "127"]
[EventDate "2024.06.29"]
[EventType "swiss"]
[EventCountry "AZE"]
[SourceTitle "playchess.com"]
[Source "ChessBase"]
[SourceQuality "1"]
[TimeControl "5400+30"]

1. d4 {[%emt 0:01:49]} Nf6 {[%emt 0:00:05]} 2. c4 {[%emt 0:00:17]} e6 {[%emt 0:00:05]} 3. Nf3 {[%emt 0:00:10]} d5 {[%emt 0:01:44]} 4. Nc3 {[%emt 0:01:27]} Be7 {[%emt 0:01:05]} 5. cxd5 {[%emt 0:00:28]} exd5 {[%emt 0:00:43]} 6. Bf4 {[%emt 0:00:10]} O-O {[%emt 0:00:49]} 7. e3 {[%emt 0:01:05]} Bf5 {[%emt 0:03:03]} 8. h3 {[%emt 0:01:18]} c6 {[%emt 0:01:02]} 9. g4 {[%emt 0:02:17]} Be4 {[%emt 0:08:15]} 10. g5 {[%emt 0:05:00]} Nh5 {[%emt 0:06:03]} 11. Bxb8 {[%emt 0:02:01]} Rxb8 {[%emt 0:02:07]} 12. Nxe4 {[%emt 0:06:22]} dxe4 {[%emt 0:00:07]} 13. Nd2 {[%emt 0:00:53]} g6 {[%emt 0:00:06]} 14. Be2 {[%emt 0:03:38]} Ng7 {[%emt 0:02:29]} 15. Nxe4 {[%emt 0:04:08]} Bxg5 {[%emt 0:09:30]} 16. Qc2 {[%emt 0:07:17]} Bh4 {[%emt 0:12:02]} 17. O-O-O {[%emt 0:03:51]} Re8 {[%emt 0:00:29]} 18. Kb1 {[%emt 0:03:35]} Nf5 {[%emt 0:01:23]} 19. Bd3 {[%emt 0:04:07]} Nd6 {[%emt 0:02:28]} 20. Nc3 {[%emt 0:02:21]} Qf6 {[%emt 0:00:09]} 21. Rhf1 {[%emt 0:01:42]} Re7 {[%emt 0:02:22]} 22. e4 {[%emt 0:06:45]} Qxd4 {[%emt 0:08:50]} 23. f4 {[%emt 0:00:51]} Qe3 {[%emt 0:02:22]} 24. e5 {[%emt 0:01:48]} Ne8 {[%emt 0:01:05]} 25. Qg2 {[%emt 0:02:40]} Rd7 {[%emt 0:05:30]} 26. Rf3 {[%emt 0:05:01]} Qc5 {[%emt 0:00:54]} 27. Qg4 {[%emt 0:01:40]} Qe7 {[%emt 0:02:35]} 28. f5 {[%emt 0:01:27]} Qg5 {[%emt 0:04:31]} 29. Qe4 {[%emt 0:05:11]} Rbd8 {[%emt 0:02:20]} 30. e6 {[%emt 0:04:19]} Nf6 {[%emt 0:00:53]} 31. Qe2 {[%emt 0:01:29]} fxe6 {[%emt 0:06:00]} 32. fxg6 {[%emt 0:06:17]} hxg6 {[%emt 0:02:06]} 33. Rdf1 {[%emt 0:00:52]} Kg7 {[%emt 0:02:56]} 34. Bc2 {[%emt 0:01:43]} Qd2 {[%emt 0:01:13]} 35. Qe5 {[%emt 0:01:10]} Qd4 {[%emt 0:00:40]} 36. Qh2 {[%emt 0:01:31]} Qd2 {[%emt 0:08:23]} 37. Qg1 {[%emt 0:01:09]} Qh6 {[%emt 0:00:48]} 38. Qxa7 {[%emt 0:00:56]} e5 {[%emt 0:00:43]} 39. a3 {[%emt 0:01:32]} Nd5 {[%emt 0:01:22]} 40. Ne4 {[%emt 0:01:36]} Nf4 {[%emt 0:00:01]} 41. Rb3 {[%emt 0:01:03]} b5 {[%emt 0:00:58]} 42. Qc5 {[%emt 0:00:17]} Qh5 {[%emt 0:00:15]} 43. Qxc6 {[%emt 0:01:46]} Rd5 {[%emt 0:00:53]} 44. Rxb5 {[%emt 0:01:20]} Qe2 {[%emt 0:00:01]} 45. Rb7+ {[%emt 0:00:07]} Kh6 {[%emt 0:00:02]} 46. Rc1 {[%emt 0:00:30]} Qe3 {[%emt 0:01:21]} 47. Rb6 {[%emt 0:01:04]} R8d7 {[%emt 0:00:38]} 48. Nf6 {[%emt 0:01:20]} Qxc1+ {[%emt 0:00:29]} 49. Kxc1 {[%emt 0:00:04]} Ne2+ {[%emt 0:00:08]} 50. Kb1 {[%emt 0:00:04]} Rd1+ {[%emt 0:00:07]} 51. Bxd1 {[%emt 0:00:14]} Rxd1+ {[%emt 0:00:02]} 52. Kc2 {[%emt 0:00:28]} Rc1+ {[%emt 0:00:01]} 53. Kd2 {[%emt 0:00:06]} Rxc6 {[%emt 0:00:04]} 54. Rxc6 {[%emt 0:00:01]} Nd4 {[%emt 0:00:27]} 55. Rb6 {[%emt 0:00:43]} Kg5 {[%emt 0:00:08]} 56. Ne4+ {[%emt 0:00:20]} Kf5 {[%emt 0:00:30]} 57. Kd3 {[%emt 0:00:37]} Ne6 {[%emt 0:01:37]} 58. Ke3 {[%emt 0:01:38]} Nf4 {[%emt 0:00:17]} 59. Nd6+ {[%emt 0:00:34]} Kg5 {[%emt 0:01:48]} 60. Ke4 {[%emt 0:00:16]} Nxh3 {[%emt 0:00:05]} 61. Nf7+ {[%emt 0:00:07]} Kh5 {[%emt 0:00:12]} 62. Nxe5 {[%emt 0:00:16]} Nf2+ {[%emt 0:01:19]} 63. Kf3 {[%emt 0:00:33]} g5 {[%emt 0:00:03]} 64. Rb4 {[%emt 0:00:14]} 1-0

[Event "Baku Open 2024"]
[Site "Baku"]
[Date "2024.07.02"]
[Round "4.12"]
[White "Narayanan S L"]
[Black "Zhukova, Natalia"]
[Result "1-0"]
[ECO "D50"]
[WhiteElo "2668"]
[BlackElo "2306"]
[Annotator "TA"]
[PlyCount "47"]
[EventDate "2024.06.29"]
[EventType "swiss"]
[EventCountry "AZE"]
[SourceTitle "playchess.com"]
[Source "ChessBase"]
[SourceQuality "1"]
[TimeControl "5400+30"]

{[%evp 14,47,12,16,20,18,29,10,16,14,27,23,25,34,42,31,34,36,47,53,42,41,54,46,141,142,144,144,153,149,203,185,250,227,226,225]} 1. d4 {[%emt 0:00:46]} Nf6 {[%emt 0:00:57]} 2. c4 {[%emt 0:00:11]} e6 {[%emt 0:00:09]} 3. Nf3 {[%emt 0:00:12]} d5 {[%emt 0:00:24]} 4. Nc3 {[%emt 0:00:10]} c5 {[%emt 0:00:45]} 5. cxd5 {[%emt 0:00:56]} cxd4 {[%emt 0:00:15]} 6. Qxd4 {[%emt 0:00:29]} exd5 {[%emt 0:00:18]} 7. Bg5 {[%emt 0:00:24]} Be7 {[%emt 0:04:56]} 8. e3 {[%emt 0:00:36]} O-O {[%emt 0:02:34]} 9. Qa4 {[%emt 0:03:34]} Nbd7 {[%emt 0:09:28]} 10. Rd1 {[%emt 0:05:18]} Nc5 {[%emt 0:26:01] The position is equal.} 11. Qc2 {[%emt 0:01:55]} Be6 {[%emt 0:17:10]} 12. Be2 {[%emt 0:49:14]} Rc8 {[%emt 0:00:37]} 13. Qb1 {[%emt 0:00:22]} h6 {[%emt 0:12:23]} 14. Bh4 {[%emt 0:00:09]} Qb6 {[%emt 0:04:58]} 15. O-O {[%emt 0:00:26]} Nce4 {[%emt 0:04:06]} 16. Nxe4 {[%emt 0:00:39]} dxe4 {[%emt 0:00:06]} 17. Nd4 {[%emt 0:01:56]} Rfd8 {[%emt 0:03:22]} 18. h3 {[%emt 0:00:45]} a6 {[%emt 0:02:04] [#]} ({Black should try} 18... g5 $14 19. Bg3 Bd5) 19. Bxf6 $1 $16 {[%emt 0:00:54] White is clearly better.} Bxf6 {[%emt 0:00:19]} 20. Nxe6 {[%emt 0:00:08]} fxe6 {[%emt 0:01:56]} 21. Qxe4 {[%emt 0:00:37]} Bxb2 {[%emt 0:01:53]} (21... Rxd1 $16 {might work better.} 22. Rxd1 Qc6) 22. Bg4 {[%emt 0:05:59]} Kf7 {[%emt 0:01:20] [#]} (22... Rb8 {keeps fighting.} 23. Rxd8+ (23. Qxe6+ Qxe6 24. Bxe6+ Kf8 $16) (23. Bxe6+ Kh8 $18) 23... Qxd8) 23. Bxe6+ $1 {[%emt 0:00:23][%mdl 512]} Qxe6 {[%emt 0:00:28]} 24. Qxb7+ {[%emt 0:00:06] Weighted Error Value: White=0.05 (flawless) /Black=0.23 (precise) .  Mistake:       	---       	Black=3      OK:         	White=8     	Black=2      Best:        	White=1     	---        Strong:       	White=1     	---} 1-0

[Event "Baku Open 2024"]
[Site "Baku"]
[Date "2024.07.02"]
[Round "4.13"]
[White "Pranav Vijay"]
[Black "Novozhilov, Semen"]
[Result "1-0"]
[ECO "C12"]
[WhiteElo "2252"]
[BlackElo "2288"]
[Annotator "NA RC"]
[PlyCount "87"]
[EventDate "2024.06.29"]
[EventType "swiss"]
[EventCountry "AZE"]
[SourceTitle "playchess.com"]
[Source "ChessBase"]
[SourceQuality "1"]
[TimeControl "5400+30"]

1. e4 {[%emt 0:02:45]} e6 {[%emt 0:00:07]} 2. d4 {[%emt 0:00:07]} d5 {[%emt 0:00:05]} 3. Nc3 {[%emt 0:00:07]} Nf6 {[%emt 0:00:05]} 4. Bg5 {[%emt 0:01:25]} h6 {[%emt 0:00:11]} 5. Bxf6 {[%emt 0:02:05]} Qxf6 {[%emt 0:00:06]} 6. a3 {[%emt 0:01:31]} c6 {[%emt 0:01:03]} 7. Nf3 {[%emt 0:01:38]} Nd7 {[%emt 0:01:14]} 8. Bd3 {[%emt 0:00:58]} Qd8 {[%emt 0:06:33]} 9. O-O {[%emt 0:06:24]} Be7 {[%emt 0:11:59]} 10. Re1 {[%emt 0:01:14]} O-O {[%emt 0:00:56]} 11. Qe2 {[%emt 0:08:28]} dxe4 {[%emt 0:13:54]} 12. Nxe4 {[%emt 0:00:57]} c5 {[%emt 0:05:33]} 13. dxc5 {[%emt 0:07:14]} Nxc5 {[%emt 0:00:37]} 14. Nxc5 {[%emt 0:00:34]} Bxc5 {[%emt 0:00:06]} 15. Qe4 {[%emt 0:14:39]} f5 {[%emt 0:04:42]} 16. Qe2 {[%emt 0:01:05]} Qf6 {[%emt 0:07:05]} 17. c3 {[%emt 0:02:42]} Bd6 {[%emt 0:12:13]} 18. Rad1 {[%emt 0:03:15]} Bc7 {[%emt 0:05:31]} 19. Bc4 {[%emt 0:01:28]} Re8 {[%emt 0:08:21]} 20. Nd4 {[%emt 0:08:36]} Kh8 {[%emt 0:01:21]} 21. Nb5 {[%emt 0:04:04]} Qe7 {[%emt 0:05:09]} 22. Nxc7 {[%emt 0:02:53]} Qxc7 {[%emt 0:00:04]} 23. Bb5 {[%emt 0:00:12]} Re7 {[%emt 0:02:29]} 24. Qe5 {[%emt 0:02:35]} Qxe5 {[%emt 0:03:49]} 25. Rd8+ {[%emt 0:00:07]} Kh7 {[%emt 0:00:03]} 26. Rxe5 {[%emt 0:00:08]} Rc7 {[%emt 0:00:52]} 27. h4 {[%emt 0:05:22]} Kg6 {[%emt 0:02:11]} 28. Rf8 {[%emt 0:01:42]} Kh7 {[%emt 0:04:26]} 29. h5 {[%emt 0:00:56]} g6 {[%emt 0:00:56]} 30. hxg6+ {[%emt 0:00:07]} Kg7 {[%emt 0:00:04]} 31. Rd8 {[%emt 0:01:31]} Kxg6 {[%emt 0:00:46]} 32. Re3 {[%emt 0:00:15]} f4 {[%emt 0:00:46]} 33. Re4 {[%emt 0:00:11]} b6 {[%emt 0:00:31]} 34. Bd3 {[%emt 0:01:23]} Kg7 {[%emt 0:01:11]} 35. Rxf4 {[%emt 0:00:15]} Bb7 {[%emt 0:01:08]} 36. Rg4+ {[%emt 0:00:24]} Kf7 {[%emt 0:00:52]} 37. Rdd4 {[%emt 0:00:10]} Rac8 {[%emt 0:00:50]} 38. Rdf4+ {[%emt 0:00:20]} Ke7 {[%emt 0:00:05]} 39. Rg7+ {[%emt 0:00:06]} Kd6 {[%emt 0:00:04]} 40. Rd4+ {[%emt 0:00:08]} Bd5 {[%emt 0:00:54]} 41. Rg6 {[%emt 0:00:13]} a5 {[%emt 0:01:06]} 42. Rxh6 {[%emt 0:00:30]} Rg7 {[%emt 0:00:26]} 43. Be4 {[%emt 0:00:14]} Rg5 {[%emt 0:00:18]} 44. f4 {[%emt 0:00:08]} 1-0

[Event "Baku Open 2024"]
[Site "Baku"]
[Date "2024.07.02"]
[Round "4.14"]
[White "Raahul V S"]
[Black "Abasov, Nijat"]
[Result "0-1"]
[ECO "E35"]
[WhiteElo "2314"]
[BlackElo "2621"]
[Annotator "TA"]
[PlyCount "60"]
[EventDate "2024.06.29"]
[EventType "swiss"]
[EventCountry "AZE"]
[SourceTitle "playchess.com"]
[Source "ChessBase"]
[SourceQuality "1"]
[TimeControl "5400+30"]

{[%evp 13,60,16,19,18,29,12,0,0,0,0,0,0,0,-187,-183,-176,-190,-186,-187,-193,-189,-181,-180,-216,-196,-232,-224,-228,-219,-208,-197,-260,-258,-273,-263,-285,-267,-551,-545,-599,-622,-779,-763,-1078,-1046,-1057,-1047,-1807,-1062]} 1. d4 {[%emt 0:00:02]} Nf6 {[%emt 0:02:30]} 2. c4 {[%emt 0:00:44]} e6 {[%emt 0:00:06]} 3. Nc3 {[%emt 0:00:11]} Bb4 {[%emt 0:00:05]} 4. Qc2 {[%emt 0:00:19]} d5 {[%emt 0:01:04]} 5. cxd5 {[%emt 0:00:16]} exd5 {[%emt 0:01:20]} 6. Bg5 {[%emt 0:00:26]} h6 {[%emt 0:00:44]} 7. Bh4 {[%emt 0:00:11]} O-O {[%emt 0:01:32]} 8. e3 {[%emt 0:01:39]} Re8 {[%emt 0:02:40]} 9. Bd3 {[%emt 0:05:42]} c5 {[%emt 0:03:38]} 10. dxc5 {[%emt 0:04:28] The position is equal.} g5 {[%emt 0:03:04]} (10... Bxc5 11. Bxf6 Qxf6 12. Nxd5 $16) 11. Bg3 {[%emt 0:02:49]} d4 {[%emt 0:00:25]} 12. O-O-O {[%emt 0:01:08]} dxc3 {[%emt 0:08:18]} 13. Bh7+ $2 {[%emt 0:00:25] [#]} Nxh7 $19 {[%emt 0:00:09]} 14. Rxd8 {[%emt 0:00:06]} Rxd8 {[%emt 0:00:09]} 15. bxc3 {[%emt 0:04:09]} Bxc5 {[%emt 0:03:04]} 16. h4 {[%emt 0:03:03]} g4 {[%emt 0:06:43]} 17. Ne2 {[%emt 0:02:31]} Nc6 {[%emt 0:02:04]} 18. Bf4 {[%emt 0:01:05]} Bf8 {[%emt 0:03:32]} 19. Nd4 {[%emt 0:17:40]} Nxd4 {[%emt 0:01:22]} 20. exd4 {[%emt 0:01:10]} Rd5 {[%emt 0:05:12]} 21. Re1 {[%emt 0:03:25]} Bd7 {[%emt 0:03:22]} 22. Be5 {[%emt 0:05:51]} (22. Re5 {keeps fighting.} Rd6 23. Qd3) 22... Rc8 {[%emt 0:02:28]} 23. f3 {[%emt 0:01:51]} Ra5 {[%emt 0:02:37]} 24. fxg4 {[%emt 0:03:36]} Be6 {[%emt 0:00:17]} ({Don't take} 24... Bxg4 25. a4 $19) 25. Re3 $2 {[%emt 0:00:49]} (25. a4) 25... Rxa2 {[%emt 0:01:24] Black is clearly winning.} 26. Qe4 {[%emt 0:00:29]} Rc4 {[%emt 0:08:13] [#] ...Rca4 would now be deadly.} 27. Kd1 {[%emt 0:24:36]} Rca4 {[%emt 0:01:01]} 28. g5 {[%emt 0:03:25]} Rb2 {[%emt 0:04:04] ( -> ...Ra1+)} 29. Kc1 {[%emt 0:00:25]} Rf2 {[%emt 0:00:06]} 30. Kb1 {[%emt 0:00:11] Dodges Ra1+} Bf5 {[%emt 0:00:19] White did not feel at home in the position after the opening.   Weighted Error Value: White=0.87/Black=0.03 (flawless) .  Loses game:     	White=1     	---        Mistake:       	White=2     	---        OK:         	White=6     	Black=10     Best:        	White=1     	Black=4} 0-1